[Event "Live Chess"]
[Site "Chess.com"]
[Date "2021.04.16"]
[Round "3"]
[White "KingSmasher35"]
[Black "GGuseinov"]
[Result "0-1"]
[CurrentPosition "8/1R3r1p/P5p1/4k3/3p4/6KP/4p1P1/8 w - -"]
[Timezone "UTC"]
[ECO "A45"]
[ECOUrl "https://www.chess.com/openings/Indian-Game"]
[UTCDate "2021.04.16"]
[UTCTime "01:34:10"]
[WhiteElo "1822"]
[BlackElo "2700"]
[TimeControl "3600+5"]
[Termination "GGuseinov won by resignation"]
[StartTime "01:34:10"]
[EndDate "2021.04.16"]
[EndTime "03:07:02"]
[Link "https://www.chess.com/game/live/12275804187"]

1. d4 {[%clk 0:59:53.9]} 1... Nf6 {[%clk 0:59:55.3]} 2. Bf4 {[%clk 0:59:50.1]} 2... g6 {[%clk 0:59:56.1]} 3. e3 {[%clk 0:59:50.2]} 3... Bg7 {[%clk 0:59:59.5]} 4. Nf3 {[%clk 0:59:51.6]} 4... O-O {[%clk 1:00:02.7]} 5. Be2 {[%clk 0:59:48.5]} 5... d6 {[%clk 0:59:48.3]} 6. h3 {[%clk 0:59:46.7]} 6... b6 {[%clk 0:59:41.7]} 7. O-O {[%clk 0:59:38.6]} 7... Bb7 {[%clk 0:59:44.8]} 8. c4 {[%clk 0:59:30.5]} 8... Nbd7 {[%clk 0:59:24.6]} 9. Nc3 {[%clk 0:59:00.9]} 9... Ne4 {[%clk 0:58:33.6]} 10. Nxe4 {[%clk 0:58:18.3]} 10... Bxe4 {[%clk 0:58:34.3]} 11. Nd2 {[%clk 0:58:13]} 11... Bb7 {[%clk 0:58:18.5]} 12. Bf3 {[%clk 0:57:43.1]} 12... Qc8 {[%clk 0:58:02.8]} 13. Qa4 {[%clk 0:54:33.1]} 13... e5 {[%clk 0:56:58.3]} 14. Bg3 {[%clk 0:49:42]} 14... Rd8 {[%clk 0:55:38]} 15. Bh4 {[%clk 0:47:11.4]} 15... f6 {[%clk 0:46:16.6]} 16. Bd5+ {[%clk 0:45:21.7]} 16... Kh8 {[%clk 0:46:08.4]} 17. Be6 {[%clk 0:42:29.6]} 17... Rb8 {[%clk 0:44:57.6]} 18. b4 {[%clk 0:40:20.4]} 18... a6 {[%clk 0:44:09]} 19. Rac1 {[%clk 0:39:03.6]} 19... Ba8 {[%clk 0:41:25.5]} 20. d5 {[%clk 0:37:58.1]} 20... b5 {[%clk 0:37:57.7]} 21. cxb5 {[%clk 0:35:16.3]} 21... Rxb5 {[%clk 0:37:42.5]} 22. e4 {[%clk 0:34:16.1]} 22... Qb7 {[%clk 0:36:52.7]} 23. Qc2 {[%clk 0:31:00.5]} 23... Rxb4 {[%clk 0:36:26.9]} 24. Qxc7 {[%clk 0:30:40.5]} 24... Qxc7 {[%clk 0:36:24.9]} 25. Rxc7 {[%clk 0:30:40.4]} 25... Nc5 {[%clk 0:36:28.7]} 26. Rf7 {[%clk 0:26:49.2]} 26... Rd4 {[%clk 0:35:35.8]} 27. Nb3 {[%clk 0:25:19.4]} 27... Rxe4 {[%clk 0:35:04.6]} 28. Bxf6 {[%clk 0:24:41.5]} 28... Bxf6 {[%clk 0:34:52.8]} 29. Rxf6 {[%clk 0:24:05.5]} 29... Nd3 {[%clk 0:33:12.2]} 30. Nd2 {[%clk 0:21:42]} 30... Rf4 {[%clk 0:32:59]} 31. Rxf4 {[%clk 0:20:53.3]} 31... Nxf4 {[%clk 0:33:03.9]} 32. Rd1 {[%clk 0:20:04.9]} 32... Kg7 {[%clk 0:32:56.5]} 33. Nc4 {[%clk 0:19:14]} 33... Kf6 {[%clk 0:32:23.8]} 34. Nb6 {[%clk 0:18:23.3]} 34... Nxe6 {[%clk 0:32:18.7]} 35. Nxa8 {[%clk 0:17:43]} 35... Rxa8 {[%clk 0:32:13.6]} 36. dxe6 {[%clk 0:17:38.7]} 36... Kxe6 {[%clk 0:32:18.5]} 37. Rb1 {[%clk 0:16:15.9]} 37... Rc8 {[%clk 0:32:11.7]} 38. Rb6 {[%clk 0:15:21.4]} 38... Rc1+ {[%clk 0:32:10.1]} 39. Kh2 {[%clk 0:15:21.4]} 39... Rc2 {[%clk 0:32:15]} 40. Rxa6 {[%clk 0:14:44]} 40... Rxf2 {[%clk 0:31:55.4]} 41. Kg3 {[%clk 0:14:40.5]} 41... Rf7 {[%clk 0:31:55.6]} 42. a4 {[%clk 0:13:30.8]} 42... e4 {[%clk 0:31:50.7]} 43. Rb6 {[%clk 0:13:14.8]} 43... Ke5 {[%clk 0:31:39.5]} 44. a5 {[%clk 0:11:40.8]} 44... e3 {[%clk 0:31:27.5]} 45. Rb1 {[%clk 0:10:48.9]} 45... d5 {[%clk 0:31:09.2]} 46. a6 {[%clk 0:10:19.9]} 46... d4 {[%clk 0:30:10.4]} 47. Rb7 {[%clk 0:05:18.4]} 47... e2 {[%clk 0:30:07.3]} 0-1

[Event "Live Chess"]
[Site "Chess.com"]
[Date "2021.04.16"]
[Round "3"]
[White "uzkuzk"]
[Black "ecwinslow"]
[Result "0-1"]
[CurrentPosition "8/1pn1kppp/4p3/4N1P1/r1p1bP2/8/4BP1P/1R4K1 w - -"]
[Timezone "UTC"]
[ECO "D00"]
[ECOUrl "https://www.chess.com/openings/Queens-Pawn-Opening-Chigorin-Variation-2...Nf6"]
[UTCDate "2021.04.16"]
[UTCTime "01:35:19"]
[WhiteElo "1809"]
[BlackElo "2278"]
[TimeControl "3600+5"]
[Termination "ecwinslow won by resignation"]
[StartTime "01:35:19"]
[EndDate "2021.04.16"]
[EndTime "02:03:47"]
[Link "https://www.chess.com/game/live/12275819699"]

1. d4 {[%clk 0:59:35.5]} 1... Nf6 {[%clk 0:59:58.4]} 2. Nc3 {[%clk 0:59:34.5]} 2... d5 {[%clk 0:59:57.4]} 3. Bf4 {[%clk 0:59:24.1]} 3... e6 {[%clk 0:59:40.8]} 4. e3 {[%clk 0:59:09.7]} 4... Bd6 {[%clk 0:59:20.7]} 5. g4 {[%clk 0:59:09.7]} 5... Bxf4 {[%clk 0:58:24.5]} 6. exf4 {[%clk 0:59:12.4]} 6... c5 {[%clk 0:58:24.9]} 7. dxc5 {[%clk 0:56:00.1]} 7... Qa5 {[%clk 0:58:15.5]} 8. g5 {[%clk 0:55:12.5]} 8... Ne4 {[%clk 0:57:53.3]} 9. Qd4 {[%clk 0:54:32.6]} 9... Qxc5 {[%clk 0:57:38.1]} 10. Qxc5 {[%clk 0:54:17.1]} 10... Nxc5 {[%clk 0:57:40.7]} 11. Nb5 {[%clk 0:54:10]} 11... Nba6 {[%clk 0:57:04.4]} 12. c3 {[%clk 0:52:25.5]} 12... Ke7 {[%clk 0:56:58.1]} 13. Nf3 {[%clk 0:51:45.3]} 13... Bd7 {[%clk 0:55:53]} 14. a4 {[%clk 0:51:35.2]} 14... Rhc8 {[%clk 0:54:28.9]} 15. Be2 {[%clk 0:49:05]} 15... Nc7 {[%clk 0:53:23.9]} 16. O-O {[%clk 0:48:07.6]} 16... Nxa4 {[%clk 0:51:38.9]} 17. Nxa7 {[%clk 0:45:22.5]} 17... Rxa7 {[%clk 0:51:40.8]} 18. b3 {[%clk 0:45:23.5]} 18... Rca8 {[%clk 0:51:43.2]} 19. bxa4 {[%clk 0:45:25.7]} 19... Rxa4 {[%clk 0:51:42.3]} 20. Rxa4 {[%clk 0:45:24.9]} 20... Rxa4 {[%clk 0:51:44.3]} 21. Rb1 {[%clk 0:45:27.6]} 21... Bc6 {[%clk 0:51:44.7]} 22. c4 {[%clk 0:45:03.9]} 22... dxc4 {[%clk 0:51:36.7]} 23. Ne5 {[%clk 0:44:58.8]} 23... Be4 {[%clk 0:50:49.9]} 0-1

[Event "Live Chess"]
[Site "Chess.com"]
[Date "2021.04.16"]
[Round "3"]
[White "FlightsOfFancy"]
[Black "zenwabi"]
[Result "1-0"]
[CurrentPosition "8/KP6/8/8/3k4/8/8/8 b - -"]
[Timezone "UTC"]
[ECO "B48"]
[ECOUrl "https://www.chess.com/openings/Sicilian-Defense-Taimanov-Bastrikov-English-Attack-7...Nf6"]
[UTCDate "2021.04.16"]
[UTCTime "01:29:56"]
[WhiteElo "2135"]
[BlackElo "1643"]
[TimeControl "3600+5"]
[Termination "FlightsOfFancy won by resignation"]
[StartTime "01:29:56"]
[EndDate "2021.04.16"]
[EndTime "03:00:52"]
[Link "https://www.chess.com/game/live/12275760001"]

1. e4 {[%clk 1:00:01.6]} 1... c5 {[%clk 0:59:59.8]} 2. Nf3 {[%clk 1:00:04.8]} 2... e6 {[%clk 0:59:59.4]} 3. d4 {[%clk 1:00:07.9]} 3... cxd4 {[%clk 1:00:02.5]} 4. Nxd4 {[%clk 1:00:12.4]} 4... Nc6 {[%clk 1:00:06.3]} 5. Nc3 {[%clk 1:00:16.5]} 5... Qc7 {[%clk 1:00:10]} 6. Be3 {[%clk 1:00:20.6]} 6... a6 {[%clk 1:00:12.5]} 7. Qd2 {[%clk 1:00:22.8]} 7... Nf6 {[%clk 1:00:15.4]} 8. O-O-O {[%clk 1:00:21.8]} 8... Be7 {[%clk 1:00:18.3]} 9. f3 {[%clk 1:00:04.5]} 9... b5 {[%clk 1:00:15.7]} 10. Nxc6 {[%clk 0:58:20.2]} 10... dxc6 {[%clk 0:59:55.9]} 11. g4 {[%clk 0:58:19.8]} 11... O-O {[%clk 0:58:21.4]} 12. Qf2 {[%clk 0:58:19.1]} 12... c5 {[%clk 0:56:37.1]} 13. Qg3 {[%clk 0:51:21.8]} 13... Qxg3 {[%clk 0:54:35.2]} 14. hxg3 {[%clk 0:51:22.4]} 14... Rd8 {[%clk 0:47:59]} 15. Rxd8+ {[%clk 0:51:08]} 15... Bxd8 {[%clk 0:48:02.8]} 16. Bxc5 {[%clk 0:51:00.6]} 16... Bb7 {[%clk 0:47:54.8]} 17. Bd3 {[%clk 0:49:57.2]} 17... g6 {[%clk 0:42:13.5]} 18. Be3 {[%clk 0:40:25.3]} 18... Bc7 {[%clk 0:36:16.3]} 19. Bf4 {[%clk 0:36:23.7]} 19... Rc8 {[%clk 0:31:37.7]} 20. Bxc7 {[%clk 0:34:14.8]} 20... Rxc7 {[%clk 0:31:39.6]} 21. a3 {[%clk 0:33:55.6]} 21... Nd7 {[%clk 0:29:51.2]} 22. f4 {[%clk 0:32:21.8]} 22... Nc5 {[%clk 0:29:53.1]} 23. Re1 {[%clk 0:30:40.7]} 23... Nxd3+ {[%clk 0:29:44.7]} 24. cxd3 {[%clk 0:30:42.7]} 24... Rd7 {[%clk 0:27:56.9]} 25. Kd2 {[%clk 0:29:36]} 25... f6 {[%clk 0:27:36.3]} 26. Ke3 {[%clk 0:28:57.9]} 26... Kg7 {[%clk 0:27:24.3]} 27. Rc1 {[%clk 0:27:57.5]} 27... Rc7 {[%clk 0:27:16.1]} 28. Ne2 {[%clk 0:27:49.9]} 28... Rxc1 {[%clk 0:27:19.5]} 29. Nxc1 {[%clk 0:27:52.1]} 29... Kf7 {[%clk 0:27:09.2]} 30. Kd4 {[%clk 0:27:45]} 30... Ke7 {[%clk 0:26:44.7]} 31. Kc5 {[%clk 0:27:41.4]} 31... Kd7 {[%clk 0:26:39.5]} 32. Kb6 {[%clk 0:27:36.2]} 32... Bc8 {[%clk 0:26:41.6]} 33. Nb3 {[%clk 0:27:22.3]} 33... Kd6 {[%clk 0:26:29.3]} 34. d4 {[%clk 0:25:54.6]} 34... e5 {[%clk 0:25:15.9]} 35. dxe5+ {[%clk 0:25:50.7]} 35... fxe5 {[%clk 0:25:19.7]} 36. f5 {[%clk 0:25:45.2]} 36... gxf5 {[%clk 0:25:05.7]} 37. gxf5 {[%clk 0:25:46.9]} 37... h5 {[%clk 0:24:39.8]} 38. Nc5 {[%clk 0:25:39.1]} 38... Ke7 {[%clk 0:22:25.2]} 39. Kc7 {[%clk 0:25:17]} 39... Bxf5 {[%clk 0:22:13.8]} 40. exf5 {[%clk 0:25:18.9]} 40... Kf6 {[%clk 0:22:17.9]} 41. Kd6 {[%clk 0:24:54.8]} 41... Kxf5 {[%clk 0:22:11]} 42. Kd5 {[%clk 0:24:56.3]} 42... a5 {[%clk 0:22:09]} 43. b4 {[%clk 0:24:47.6]} 43... axb4 {[%clk 0:21:48.4]} 44. axb4 {[%clk 0:24:50.6]} 44... Kf6 {[%clk 0:20:27]} 45. Ke4 {[%clk 0:24:51.5]} 45... Kg5 {[%clk 0:19:40]} 46. Kxe5 {[%clk 0:24:53.1]} 46... Kg4 {[%clk 0:18:53.3]} 47. Ne4 {[%clk 0:24:55.5]} 47... Kf3 {[%clk 0:16:50.5]} 48. Kd4 {[%clk 0:23:18.9]} 48... Kg4 {[%clk 0:16:19]} 49. Ke3 {[%clk 0:23:19.4]} 49... Kf5 {[%clk 0:15:39]} 50. Nd6+ {[%clk 0:23:09.2]} 50... Kg4 {[%clk 0:15:37]} 51. Kf2 {[%clk 0:23:10.7]} 51... h4 {[%clk 0:15:39.1]} 52. gxh4 {[%clk 0:23:11.7]} 52... Kxh4 {[%clk 0:15:43.3]} 53. Nxb5 {[%clk 0:23:14.9]} 53... Kg4 {[%clk 0:15:47.7]} 54. Ke3 {[%clk 0:23:17.5]} 54... Kf5 {[%clk 0:15:51.7]} 55. Kd4 {[%clk 0:23:21.2]} 55... Ke6 {[%clk 0:15:55.2]} 56. Kc5 {[%clk 0:23:24]} 56... Kd7 {[%clk 0:15:59.5]} 57. Kb6 {[%clk 0:23:27.8]} 57... Kc8 {[%clk 0:16:03.4]} 58. Ka7 {[%clk 0:23:30.4]} 58... Kd7 {[%clk 0:16:06.5]} 59. Nd4 {[%clk 0:23:33]} 59... Kd6 {[%clk 0:16:01.3]} 60. b5 {[%clk 0:23:36.9]} 60... Kc5 {[%clk 0:16:04.7]} 61. b6 {[%clk 0:23:40.7]} 61... Kxd4 {[%clk 0:16:08.9]} 62. b7 {[%clk 0:23:44.8]} 1-0

[Event "Live Chess"]
[Site "Chess.com"]
[Date "2021.04.16"]
[Round "3"]
[White "fastZachi"]
[Black "KyronGriffith"]
[Result "0-1"]
[CurrentPosition "8/8/1pB4p/pP4p1/3k4/4pP1P/3bR1K1/2r5 w - a6"]
[Timezone "UTC"]
[ECO "B07"]
[ECOUrl "https://www.chess.com/openings/Pirc-Defense"]
[UTCDate "2021.04.16"]
[UTCTime "01:30:15"]
[WhiteElo "1813"]
[BlackElo "2490"]
[TimeControl "3600+5"]
[Termination "KyronGriffith won by resignation"]
[StartTime "01:30:15"]
[EndDate "2021.04.16"]
[EndTime "03:36:53"]
[Link "https://www.chess.com/game/live/12275761093"]

1. e4 {[%clk 0:59:46]} 1... d6 {[%clk 1:00:02.4]} 2. g3 {[%clk 0:59:37.8]} 2... Nf6 {[%clk 0:59:01.8]} 3. Bg2 {[%clk 0:59:31.6]} 3... e5 {[%clk 0:58:53.2]} 4. Nc3 {[%clk 0:58:57.5]} 4... g6 {[%clk 0:58:35.3]} 5. d3 {[%clk 0:58:56.4]} 5... Bg7 {[%clk 0:58:26.5]} 6. Bg5 {[%clk 0:58:17.9]} 6... h6 {[%clk 0:58:01.5]} 7. Bxf6 {[%clk 0:57:55.8]} 7... Bxf6 {[%clk 0:57:48.7]} 8. Nge2 {[%clk 0:57:31]} 8... Bg7 {[%clk 0:56:44.7]} 9. Qd2 {[%clk 0:57:02.5]} 9... Nc6 {[%clk 0:54:58.7]} 10. Nd5 {[%clk 0:53:10.6]} 10... Be6 {[%clk 0:53:08.1]} 11. c4 {[%clk 0:52:33.9]} 11... O-O {[%clk 0:52:00.1]} 12. O-O {[%clk 0:49:03.6]} 12... Qd7 {[%clk 0:46:09.8]} 13. b4 {[%clk 0:48:34.1]} 13... f5 {[%clk 0:41:57.5]} 14. b5 {[%clk 0:45:59.3]} 14... Nd8 {[%clk 0:41:15.2]} 15. Rab1 {[%clk 0:45:05.5]} 15... c6 {[%clk 0:39:51.7]} 16. Ndc3 {[%clk 0:40:35.9]} 16... Rc8 {[%clk 0:36:27.1]} 17. a4 {[%clk 0:37:07.8]} 17... f4 {[%clk 0:34:06.9]} 18. gxf4 {[%clk 0:35:54.1]} 18... exf4 {[%clk 0:34:03.8]} 19. f3 {[%clk 0:31:46]} 19... g5 {[%clk 0:33:25.9]} 20. Rbc1 {[%clk 0:27:46.6]} 20... Nf7 {[%clk 0:30:34.4]} 21. Kh1 {[%clk 0:26:34.2]} 21... d5 {[%clk 0:27:29.5]} 22. cxd5 {[%clk 0:22:15.9]} 22... cxd5 {[%clk 0:27:34.4]} 23. exd5 {[%clk 0:22:02.9]} 23... Bxd5 {[%clk 0:25:49.7]} 24. Nxd5 {[%clk 0:18:12]} 24... Qxd5 {[%clk 0:25:54.6]} 25. d4 {[%clk 0:17:32.2]} 25... Nd6 {[%clk 0:24:15]} 26. Bh3 {[%clk 0:14:13.5]} 26... Rxc1 {[%clk 0:23:26.9]} 27. Qxc1 {[%clk 0:13:45]} 27... Nc4 {[%clk 0:20:12.8]} 28. Bg2 {[%clk 0:09:46]} 28... Re8 {[%clk 0:17:10.6]} 29. Nc3 {[%clk 0:08:59.5]} 29... Qxd4 {[%clk 0:16:46]} 30. Ne4 {[%clk 0:08:49.4]} 30... Ne3 {[%clk 0:15:42.4]} 31. Rf2 {[%clk 0:08:26.2]} 31... Qxa4 {[%clk 0:14:44.5]} 32. h3 {[%clk 0:07:39.9]} 32... Rd8 {[%clk 0:11:14.6]} 33. Qc7 {[%clk 0:07:02.2]} 33... Qd1+ {[%clk 0:11:00.6]} 34. Kh2 {[%clk 0:06:59.7]} 34... Qd7 {[%clk 0:11:04.5]} 35. Qc5 {[%clk 0:06:43.8]} 35... b6 {[%clk 0:10:53.3]} 36. Qb4 {[%clk 0:05:46.9]} 36... Qf7 {[%clk 0:08:59.9]} 37. Bf1 {[%clk 0:03:53.1]} 37... Rd4 {[%clk 0:08:04.6]} 38. Qa3 {[%clk 0:03:04.2]} 38... Kh8 {[%clk 0:07:21.3]} 39. Qc1 {[%clk 0:02:54.6]} 39... Rd1 {[%clk 0:06:38.2]} 40. Qc8+ {[%clk 0:02:52.5]} 40... Qg8 {[%clk 0:06:42.4]} 41. Qxg8+ {[%clk 0:02:38]} 41... Kxg8 {[%clk 0:06:47.3]} 42. Be2 {[%clk 0:02:38.9]} 42... Rb1 {[%clk 0:06:33.6]} 43. Bd3 {[%clk 0:02:14.3]} 43... Rb3 {[%clk 0:06:06.5]} 44. Rd2 {[%clk 0:02:13.8]} 44... Bc3 {[%clk 0:06:00.2]} 45. Re2 {[%clk 0:02:11.3]} 45... Kg7 {[%clk 0:05:30.8]} 46. Nd6 {[%clk 0:01:58.2]} 46... Bb4 {[%clk 0:05:13.1]} 47. Nf5+ {[%clk 0:01:55.3]} 47... Kf6 {[%clk 0:03:55.3]} 48. Nxe3 {[%clk 0:01:36.7]} 48... fxe3 {[%clk 0:03:41.7]} 49. Bc4 {[%clk 0:01:15.5]} 49... Rc3 {[%clk 0:03:27.4]} 50. Bd5 {[%clk 0:01:15.8]} 50... Ke5 {[%clk 0:03:28.6]} 51. Be4 {[%clk 0:01:14.4]} 51... Kd4 {[%clk 0:02:50.1]} 52. Kg3 {[%clk 0:01:12.2]} 52... Rc1 {[%clk 0:02:28.1]} 53. Kg2 {[%clk 0:01:00.5]} 53... Bd2 {[%clk 0:02:29.1]} 54. Bc6 {[%clk 0:00:41.1]} 54... a5 {[%clk 0:02:31.8]} 0-1

[Event "Live Chess"]
[Site "Chess.com"]
[Date "2021.04.16"]
[Round "3"]
[White "rkoepcke"]
[Black "Talenuf"]
[Result "1-0"]
[CurrentPosition "5rk1/1q1nrpb1/pp1P2p1/2p1P2p/P4Pn1/2N2B2/1PQB2PP/4RR1K b - -"]
[Timezone "UTC"]
[ECO "A66"]
[ECOUrl "https://www.chess.com/openings/Benoni-Defense-Modern-Pawn-Storm-Variation"]
[UTCDate "2021.04.16"]
[UTCTime "01:30:16"]
[WhiteElo "2200"]
[BlackElo "1900"]
[TimeControl "3600+5"]
[Termination "rkoepcke won by resignation"]
[StartTime "01:30:16"]
[EndDate "2021.04.16"]
[EndTime "02:00:47"]
[Link "https://www.chess.com/game/live/12275761429"]

1. d4 {[%clk 1:00:01.2]} 1... Nf6 {[%clk 1:00:03.6]} 2. c4 {[%clk 1:00:03.1]} 2... e6 {[%clk 1:00:03.1]} 3. Nc3 {[%clk 1:00:03.4]} 3... c5 {[%clk 1:00:06.2]} 4. d5 {[%clk 1:00:05.3]} 4... exd5 {[%clk 1:00:09.7]} 5. cxd5 {[%clk 1:00:07.8]} 5... d6 {[%clk 1:00:14]} 6. e4 {[%clk 1:00:09]} 6... g6 {[%clk 1:00:17.9]} 7. f4 {[%clk 1:00:10.9]} 7... Bg7 {[%clk 1:00:21.3]} 8. Bb5+ {[%clk 1:00:13.6]} 8... Nfd7 {[%clk 1:00:24.9]} 9. Be2 {[%clk 1:00:14]} 9... O-O {[%clk 1:00:19.2]} 10. Nf3 {[%clk 1:00:14.9]} 10... Re8 {[%clk 0:59:42.7]} 11. O-O {[%clk 0:59:48.9]} 11... a6 {[%clk 0:58:37.2]} 12. a4 {[%clk 0:59:49.4]} 12... Qc7 {[%clk 0:58:40.4]} 13. Nd2 {[%clk 0:58:39]} 13... b6 {[%clk 0:53:10.3]} 14. Kh1 {[%clk 0:57:13.9]} 14... Bb7 {[%clk 0:52:21.8]} 15. Qc2 {[%clk 0:56:05.4]} 15... Nf6 {[%clk 0:51:13.1]} 16. Nc4 {[%clk 0:53:04.6]} 16... Nbd7 {[%clk 0:50:40.3]} 17. Bd2 {[%clk 0:52:31.9]} 17... Re7 {[%clk 0:48:48.2]} 18. Rae1 {[%clk 0:52:23.6]} 18... Rae8 {[%clk 0:48:47]} 19. Bf3 {[%clk 0:52:01]} 19... h5 {[%clk 0:46:17.1]} 20. e5 {[%clk 0:51:53.3]} 20... Ng4 {[%clk 0:44:59.8]} 21. Nxd6 {[%clk 0:51:45.3]} 21... Rf8 {[%clk 0:41:48.4]} 22. Nxb7 {[%clk 0:51:43.8]} 22... Qxb7 {[%clk 0:41:51.9]} 23. d6 {[%clk 0:51:46.1]} 1-0

[Event "Live Chess"]
[Site "Chess.com"]
[Date "2021.04.16"]
[Round "3"]
[White "kclemens"]
[Black "Barok44"]
[Result "1-0"]
[CurrentPosition "8/7p/1P1p2p1/5p2/2P2P2/3k2PP/5K2/8 b - -"]
[Timezone "UTC"]
[ECO "A04"]
[ECOUrl "https://www.chess.com/openings/Reti-Opening-Kingside-Fianchetto-Variation"]
[UTCDate "2021.04.16"]
[UTCTime "01:37:29"]
[WhiteElo "1997"]
[BlackElo "1759"]
[TimeControl "3600+5"]
[Termination "kclemens won by resignation"]
[StartTime "01:37:29"]
[EndDate "2021.04.16"]
[EndTime "03:30:49"]
[Link "https://www.chess.com/game/live/12275844333"]

1. Nf3 {[%clk 0:59:59.7]} 1... g6 {[%clk 0:59:59.8]} 2. c4 {[%clk 0:59:58.1]} 2... c5 {[%clk 0:59:55.6]} 3. Nc3 {[%clk 0:59:54.2]} 3... Bg7 {[%clk 0:59:50.1]} 4. g3 {[%clk 0:59:53.9]} 4... Nc6 {[%clk 0:59:31]} 5. Bg2 {[%clk 0:59:45.8]} 5... Nf6 {[%clk 0:59:23.1]} 6. O-O {[%clk 0:59:40.6]} 6... e5 {[%clk 0:58:15.3]} 7. d3 {[%clk 0:59:30.1]} 7... O-O {[%clk 0:57:52.5]} 8. Be3 {[%clk 0:56:25.1]} 8... d6 {[%clk 0:57:36.2]} 9. h3 {[%clk 0:55:53.1]} 9... Bd7 {[%clk 0:56:45.6]} 10. Qd2 {[%clk 0:54:20.6]} 10... Rb8 {[%clk 0:55:03]} 11. Rab1 {[%clk 0:52:15.4]} 11... Nd4 {[%clk 0:54:26.7]} 12. Kh2 {[%clk 0:45:16.7]} 12... Bc6 {[%clk 0:53:49.7]} 13. Ne1 {[%clk 0:42:38.4]} 13... Qd7 {[%clk 0:50:10.5]} 14. Bh6 {[%clk 0:40:11]} 14... Bxg2 {[%clk 0:48:41.4]} 15. Kxg2 {[%clk 0:40:02.8]} 15... Qc6+ {[%clk 0:43:08.8]} 16. Kh2 {[%clk 0:38:36.1]} 16... a6 {[%clk 0:41:50.3]} 17. Bxg7 {[%clk 0:38:08.5]} 17... Kxg7 {[%clk 0:41:34.8]} 18. e3 {[%clk 0:36:45.9]} 18... Nf3+ {[%clk 0:40:17.9]} 19. Nxf3 {[%clk 0:36:46.3]} 19... Qxf3 {[%clk 0:40:19.6]} 20. Qe2 {[%clk 0:33:05.4]} 20... Qc6 {[%clk 0:38:24.6]} 21. f4 {[%clk 0:31:03.4]} 21... b5 {[%clk 0:36:40.3]} 22. Qg2 {[%clk 0:27:22.6]} 22... Qxg2+ {[%clk 0:33:06.2]} 23. Kxg2 {[%clk 0:27:27.5]} 23... bxc4 {[%clk 0:32:39.7]} 24. dxc4 {[%clk 0:26:53.5]} 24... exf4 {[%clk 0:29:32.3]} 25. exf4 {[%clk 0:26:15.4]} 25... Rfe8 {[%clk 0:28:23.9]} 26. b3 {[%clk 0:23:27.7]} 26... Re3 {[%clk 0:27:32.9]} 27. Rf3 {[%clk 0:22:27.7]} 27... Rbe8 {[%clk 0:27:04.3]} 28. Rd1 {[%clk 0:19:21.7]} 28... Rxf3 {[%clk 0:22:58.1]} 29. Kxf3 {[%clk 0:19:26.6]} 29... Rd8 {[%clk 0:22:28.4]} 30. Rd3 {[%clk 0:18:26.9]} 30... Ne8 {[%clk 0:21:18.5]} 31. Ne4 {[%clk 0:16:52]} 31... f5 {[%clk 0:20:57]} 32. Nxc5 {[%clk 0:14:49.6]} 32... Rc8 {[%clk 0:19:59.6]} 33. Nxa6 {[%clk 0:13:16.6]} 33... Ra8 {[%clk 0:19:58.5]} 34. Nb4 {[%clk 0:12:41.8]} 34... Kf7 {[%clk 0:19:24.1]} 35. a4 {[%clk 0:12:07]} 35... Rb8 {[%clk 0:18:53.6]} 36. Nd5 {[%clk 0:11:28.8]} 36... Ke6 {[%clk 0:18:00.6]} 37. Re3+ {[%clk 0:10:41.8]} 37... Kd7 {[%clk 0:18:02.7]} 38. b4 {[%clk 0:09:18.1]} 38... Kd8 {[%clk 0:16:36.9]} 39. a5 {[%clk 0:09:10.6]} 39... Nc7 {[%clk 0:15:51.1]} 40. Nxc7 {[%clk 0:07:50.1]} 40... Kxc7 {[%clk 0:15:35.8]} 41. b5 {[%clk 0:07:47.4]} 41... Ra8 {[%clk 0:15:28.4]} 42. a6 {[%clk 0:07:12]} 42... Kb6 {[%clk 0:15:25.9]} 43. Re7 {[%clk 0:06:26.1]} 43... Kc5 {[%clk 0:15:10.9]} 44. Rc7+ {[%clk 0:06:22.4]} 44... Kd4 {[%clk 0:15:12.7]} 45. a7 {[%clk 0:05:52.7]} 45... Re8 {[%clk 0:15:09.1]} 46. Re7 {[%clk 0:03:44.3]} 46... Rxe7 {[%clk 0:13:26.6]} 47. a8=Q {[%clk 0:03:37.7]} 47... Re3+ {[%clk 0:13:28.3]} 48. Kf2 {[%clk 0:03:35]} 48... Rd3 {[%clk 0:12:40.2]} 49. Qd5+ {[%clk 0:03:18.9]} 49... Kc3 {[%clk 0:12:41.6]} 50. Qxd3+ {[%clk 0:03:07.9]} 50... Kxd3 {[%clk 0:12:36.9]} 51. b6 {[%clk 0:03:12.8]} 1-0